Workbook

Sheet Energiebedarf
B2: Errechnen Sie Ihren täglichen Energiebedarf
B4: Berechnung des Grundumsatzes für Männer
B6: Alter | C6: Faktor | D6: Gewicht (kg) | E6: Faktor | F6: Größe (m) | G6: Faktor | H6: Grundumsatz (kcal) | I6: PAL | J6: PAL-Eingabe | K6: Kalorienbedarf | L6: Kilojoule-Bedarf
B7: 10 bis 18 | C7: 16.6 | D7: 0 | E7: 77 | F7: 0 | G7: 572 | H7: =C7*D7+E7*F7+G7 -> 572 | I7: =M7/10 -> 1.2 | K7: =H7*I7 -> 686.4 | L7: =K7*4.184 -> 2871.8976 | M7: 12
B8: 19 bis 30 | C8: 15.4 | D8: 0 | E8: -27 | F8: 0 | G8: 717 | H8: =C8*D8+E8*F8+G8 -> 717 | I8: =M8/10 -> 1.2 | K8: =H8*I8 -> 860.4 | L8: =K8*4.184 -> 3599.9136 | M8: 12
B9: 31 bis 60 | C9: 11.3 | D9: 0 | E9: 16 | F9: 0 | G9: 901 | H9: =C9*D9+E9*F9+G9 -> 901 | I9: =M9/10 -> 1.2 | K9: =H9*I9 -> 1081.2 | L9: 4523.7408 | M9: 12
B10: über 60 | C10: 8.8 | D10: 0 | E10: 1228 | F10: 0 | G10: -1071 | H10: =C10*D10+E10*F10+G10 -> -1071 | I10: =M10/10 -> 1.2 | K10: =H10*I10 -> -1285.2 | L10: -5377.2768 | M10: 12
B13: Berechnung des Grundumsatzes für Frauen
B15: Alter | C15: Faktor | D15: Gewicht (kg) | E15: Faktor | F15: Größe (m) | G15: Faktor | H15: Grundumsatz (kcal) | I15: PAL | J15: PAL-Eingabe | K15: Kalorienbedarf | L15: Kilojoule-Bedarf
B16: 10 bis 18 | C16: 7.4 | D16: 0 | E16: 482 | F16: 0 | G16: 217 | H16: =C16*D16+E16*F16+G16 -> 217 | I16: =M16/10 -> 1.2 | K16: =H16*I16 -> 260.4 | L16: =K16*4.184 -> 1089.5136 | M16: 12
B17: 19 bis 30 | C17: 13.3 | D17: 0 | E17: 334 | F17: 0 | G17: 35 | H17: =C17*D17+E17*F17+G17 -> 35 | I17: =M17/10 -> 1.2 | K17: =H17*I17 -> 42 | L17: =K17*4.184 -> 175.728 | M17: 12
B18: 31 bis 60 | C18: 8.7 | D18: 0 | E18: 25 | F18: 0 | G18: 865 | H18: =C18*D18+E18*F18+G18 -> 865 | I18: =M18/10 -> 0 | K18: =H18*I18 -> 0 | L18: =K18*4.184 -> 0 | M18: 0
B19: über 60 | C19: 9.2 | D19: 0 | E19: 637 | F19: 0 | G19: -302 | H19: =C19*D19+E19*F19+G19 -> -302 | I19: =M19/10 -> 1.2 | K19: =H19*I19 -> -362.4 | L19: =K19*4.184 -> -1516.2816 | M19: 12
B22: PAL (Physical activity level)
B24: ausschließlich sitzende oder liegende Lebensweise | I24: 1.2
B25: auschließlich sitzende oder liegende Tätigkeit | I25: 1,4 bis 1,5
B26: sitzende Tätigkeit, zeitweilig zusätzlicher Energiebedarf durch gehende oder stehende Tätigkeiten | I26: 1,6 bis 1,7
B27: überwiegend gehende oder stehende Tätigkeiten | I27: 1,8 bis 1,9
B28: körperlich anstrengende berufliche Tätigkeiten | I28: 2,0 bis 2,4
B29: Zuschlag für sportliche Freizeitaktivitäten ( 4 bis 5-mal pro Wochefür je 30 bis 60 Minuten) | I29: 0.3 | J29: Quelle: Stern-Spezial "Gesund Leben", Nr. 1/2003

Sheet Handlungssituation
A1: Handlungssituation:
A2: Sie arbeiten als ErnährungsberaterIn in einer Frauen-Kurklinik. In der Zeitschrift "Stern-Spezial - Gesund und Leben"
A3: entdecken Sie die unten abgebildete Energie-Bedarfsberechnung. Sie möchten diese mit Excel
A4: auf dem PC nutzen.
A5: Erstellen Sie eine Exceltabelle zur Berechnung des Energiebedarf bei Frauen.
A7: Berücksichtigen Sie folgende Hinweise:
A9: Die Eingabe des PAL-Wertes erfolgt über Schieberegler.
A10: Errechnen Sie zusätzlich den Bedarf in kJ (1 Kilokalorie entspricht 4,184 kJ)
A11: Erstellen Sie ein Makro, dass die eingegeben Gewichts- und Größenwerte wieder auf Null setzt.
A12: Das Makro soll über einen Eingabebutton ausgelöst werden.
A13: Die Tabelle ist sinnvoll zu formatieren.
A14: Felder, die nicht beschrieben werden sollen, sind zu schützen.
A15: Die Ergebnisfelder (Kcal bzw. kJ) sollen sich automatisch farblich verändern, wenn sie ein Ergebnis zeigen.
